[Event "Titled Tuesday Blitz July 4 Early 2023"]
[White "Bachmann, Axel"]
[Black "Mika, Tomasz"]
[WhiteFideId "3700488"]
[BlackFideId "1132970"]
[WhiteElo "2799"]
[BlackElo "2446"]
[Result "1-0"]
[Round "1"]
[TimeControl "180+2"]
[Date "2023.07.04"]
[WhiteClock "0:00:31"]
[BlackClock "0:00:06"]
[Board "71"]

1. d4 {[%clk 0:03:00]}  Nf6 {[%clk 0:02:58]} 2. c4 {[%clk 0:02:59]}  e6 {[%clk 0:02:58]} 3. g3 {[%clk 0:02:57]}  Bb4+ {[%clk 0:02:57]} 4. Nd2 {[%clk 0:02:56]}  d5 {[%clk 0:02:54]} 5. Bg2 {[%clk 0:02:56]}  O-O {[%clk 0:02:53]} 6. Nf3 {[%clk 0:02:56]}  c6 {[%clk 0:02:51]} 7. O-O {[%clk 0:02:55]}  b6 {[%clk 0:02:48]} 8. Qc2 {[%clk 0:02:53]}  Bb7 {[%clk 0:02:47]} 9. e4 {[%clk 0:02:52]}  Bxd2 {[%clk 0:02:32]} 10. Nxd2 {[%clk 0:02:50]}  dxe4 {[%clk 0:02:31]} 11. Nxe4 {[%clk 0:02:50]}  Nxe4 {[%clk 0:02:30]} 12. Bxe4 {[%clk 0:02:44]}  f5 {[%clk 0:02:27]} 13. Bg2 {[%clk 0:02:43]}  Qxd4 {[%clk 0:02:26]} 14. Bf4 {[%clk 0:02:43]}  Na6 {[%clk 0:02:19]} 15. Rad1 {[%clk 0:02:42]}  Qf6 {[%clk 0:02:19]} 16. a3 {[%clk 0:02:22]}  e5 {[%clk 0:02:05]} 17. Bc1 {[%clk 0:02:22]}  Rad8 {[%clk 0:02:01]} 18. b4 {[%clk 0:02:21]}  Nc7 {[%clk 0:01:54]} 19. h4 {[%clk 0:02:08]}  Ne6 {[%clk 0:01:50]} 20. Qa4 {[%clk 0:02:05]}  a6 {[%clk 0:01:22]} 21. Be3 {[%clk 0:01:56]}  b5 {[%clk 0:01:17]} 22. Qb3 {[%clk 0:01:55]}  Nd4 {[%clk 0:01:14]} 23. Bxd4 {[%clk 0:01:52]}  Rxd4 {[%clk 0:01:07]} 24. cxb5+ {[%clk 0:01:50]}  Kh8 {[%clk 0:01:07]} 25. Rxd4 {[%clk 0:01:49]}  exd4 {[%clk 0:01:06]} 26. a4 {[%clk 0:01:37]}  Rd8 {[%clk 0:00:58]} 27. Rd1 {[%clk 0:01:20]}  g6 {[%clk 0:00:42]} 28. Qf3 {[%clk 0:01:14]}  Rd6 {[%clk 0:00:39]} 29. Qf4 {[%clk 0:01:05]}  Kg7 {[%clk 0:00:28]} 30. b6 {[%clk 0:00:52]}  Rd7 {[%clk 0:00:22]} 31. a5 {[%clk 0:00:49]}  Qd6 {[%clk 0:00:20]} 32. Qxd6 {[%clk 0:00:46]}  Rxd6 {[%clk 0:00:21]} 33. Bf1 {[%clk 0:00:47]}  Kf6 {[%clk 0:00:19]} 34. f4 {[%clk 0:00:45]}  Rd5 {[%clk 0:00:11]} 35. Kf2 {[%clk 0:00:44]}  Rd8 {[%clk 0:00:08]} 36. Bc4 {[%clk 0:00:41]}  c5 {[%clk 0:00:07]} 37. bxc5 {[%clk 0:00:40]}  Rc8 {[%clk 0:00:08]} 38. Rxd4 {[%clk 0:00:36]}  Rxc5 {[%clk 0:00:08]} 39. Rd7 {[%clk 0:00:32]}  Be4 {[%clk 0:00:06]} 40. Rf7# {[%clk 0:00:31]} 1-0


[Site "https://www.chess.com"]

[Event "Titled Tuesday Blitz July 4 Early 2023"]
[White "Herman, Daniel"]
[Black "Lin, Dachey"]
[WhiteFideId "30935008"]
[BlackFideId "2029650"]
[WhiteElo "2444"]
[BlackElo "2796"]
[Result "0-1"]
[Round "1"]
[TimeControl "180+2"]
[Date "2023.07.04"]
[WhiteClock "0:00:02"]
[BlackClock "0:01:19"]
[Board "72"]

1. c4 {[%clk 0:02:59]}  g6 {[%clk 0:02:59]} 2. Nc3 {[%clk 0:02:58]}  Bg7 {[%clk 0:03:00]} 3. e4 {[%clk 0:02:56]}  c5 {[%clk 0:03:00]} 4. g3 {[%clk 0:02:54]}  Nc6 {[%clk 0:03:01]} 5. Bg2 {[%clk 0:02:54]}  Nf6 {[%clk 0:03:01]} 6. Nge2 {[%clk 0:02:54]}  O-O {[%clk 0:03:02]} 7. O-O {[%clk 0:02:53]}  Ne8 {[%clk 0:03:03]} 8. d3 {[%clk 0:02:48]}  Nc7 {[%clk 0:03:03]} 9. Be3 {[%clk 0:02:46]}  Ne6 {[%clk 0:03:04]} 10. f4 {[%clk 0:02:44]}  d6 {[%clk 0:03:04]} 11. f5 {[%clk 0:02:42]}  Ned4 {[%clk 0:03:04]} 12. g4 {[%clk 0:02:33]}  e6 {[%clk 0:02:59]} 13. Qd2 {[%clk 0:02:27]}  exf5 {[%clk 0:02:24]} 14. gxf5 {[%clk 0:02:26]}  gxf5 {[%clk 0:02:14]} 15. Bg5 {[%clk 0:02:09]}  f6 {[%clk 0:02:00]} 16. Bh6 {[%clk 0:01:39]}  Rf7 {[%clk 0:01:54]} 17. exf5 {[%clk 0:01:29]}  Nxf5 {[%clk 0:01:51]} 18. Bf4 {[%clk 0:01:02]}  Be6 {[%clk 0:01:47]} 19. Bd5 {[%clk 0:00:56]}  Qd7 {[%clk 0:01:47]} 20. Kh1 {[%clk 0:00:55]}  Re8 {[%clk 0:01:43]} 21. Rae1 {[%clk 0:00:44]}  Nh4 {[%clk 0:01:36]} 22. Ng3 {[%clk 0:00:37]}  Bxd5+ {[%clk 0:01:37]} 23. Nxd5 {[%clk 0:00:37]}  Nd4 {[%clk 0:01:35]} 24. Qd1 {[%clk 0:00:23]}  Rff8 {[%clk 0:01:30]} 25. Qh5 {[%clk 0:00:18]}  Qh3 {[%clk 0:01:28]} 26. Ne7+ {[%clk 0:00:03]}  Rxe7 {[%clk 0:01:26]} 27. Qd5+ {[%clk 0:00:02]}  Ref7 {[%clk 0:01:19]} 0-1


[Site "https://www.chess.com"]

[Event "Titled Tuesday Blitz July 4 Early 2023"]
[White "Mekhitarian, Krikor Sevag"]
[Black "Chor, Kevin"]
[WhiteFideId "2107660"]
[BlackFideId "2090740"]
[WhiteElo "2795"]
[BlackElo "2444"]
[Result "1-0"]
[Round "1"]
[TimeControl "180+2"]
[Date "2023.07.04"]
[WhiteClock "0:01:14"]
[BlackClock "0:00:00"]
[Board "73"]

1. Nf3 {[%clk 0:03:00]}  c5 {[%clk 0:02:58]} 2. c4 {[%clk 0:03:01]}  Nc6 {[%clk 0:02:58]} 3. Nc3 {[%clk 0:03:01]}  g6 {[%clk 0:02:55]} 4. e3 {[%clk 0:02:59]}  Bg7 {[%clk 0:02:53]} 5. d4 {[%clk 0:02:59]}  Nf6 {[%clk 0:02:41]} 6. d5 {[%clk 0:02:59]}  Na5 {[%clk 0:02:40]} 7. e4 {[%clk 0:02:59]}  d6 {[%clk 0:02:39]} 8. h3 {[%clk 0:02:59]}  O-O {[%clk 0:02:38]} 9. Bd3 {[%clk 0:03:00]}  e6 {[%clk 0:02:38]} 10. O-O {[%clk 0:02:59]}  exd5 {[%clk 0:02:38]} 11. exd5 {[%clk 0:03:00]}  a6 {[%clk 0:02:33]} 12. Rb1 {[%clk 0:02:54]}  b5 {[%clk 0:02:29]} 13. b3 {[%clk 0:02:53]}  Rb8 {[%clk 0:02:20]} 14. Bd2 {[%clk 0:02:50]}  Bd7 {[%clk 0:02:13]} 15. Qc2 {[%clk 0:02:49]}  Qb6 {[%clk 0:01:57]} 16. Rfe1 {[%clk 0:02:46]}  Rfe8 {[%clk 0:01:55]} 17. Rxe8+ {[%clk 0:02:32]}  Rxe8 {[%clk 0:01:56]} 18. Nd1 {[%clk 0:02:32]}  Rb8 {[%clk 0:01:45]} 19. Ne3 {[%clk 0:02:23]}  Nb7 {[%clk 0:01:36]} 20. Bc3 {[%clk 0:02:22]}  Re8 {[%clk 0:01:06]} 21. Re1 {[%clk 0:02:13]}  Qd8 {[%clk 0:00:57]} 22. g4 {[%clk 0:02:13]}  h5 {[%clk 0:00:49]} 23. g5 {[%clk 0:02:06]}  Nh7 {[%clk 0:00:49]} 24. h4 {[%clk 0:02:07]}  Bxc3 {[%clk 0:00:41]} 25. Qxc3 {[%clk 0:02:07]}  Qa5 {[%clk 0:00:40]} 26. Qxa5 {[%clk 0:02:00]}  Nxa5 {[%clk 0:00:41]} 27. Nd2 {[%clk 0:02:00]}  Nb7 {[%clk 0:00:32]} 28. f4 {[%clk 0:02:00]}  b4 {[%clk 0:00:26]} 29. Kf2 {[%clk 0:02:00]}  a5 {[%clk 0:00:26]} 30. Ne4 {[%clk 0:01:52]}  a4 {[%clk 0:00:21]} 31. Ng3 {[%clk 0:01:52]}  axb3 {[%clk 0:00:19]} 32. axb3 {[%clk 0:01:53]}  Ra8 {[%clk 0:00:20]} 33. f5 {[%clk 0:01:53]}  Nf8 {[%clk 0:00:15]} 34. Ne4 {[%clk 0:01:51]}  Bxf5 {[%clk 0:00:15]} 35. Nf6+ {[%clk 0:01:50]}  Kh8 {[%clk 0:00:12]} 36. Nxf5 {[%clk 0:01:38]}  Ra2+ {[%clk 0:00:10]} 37. Kf3 {[%clk 0:01:32]}  gxf5 {[%clk 0:00:08]} 38. Bxf5 {[%clk 0:01:33]}  Rb2 {[%clk 0:00:04]} 39. Re8 {[%clk 0:01:12]}  Kg7 {[%clk 0:00:03]} 40. Nxh5+ {[%clk 0:01:12]}  Kg8 {[%clk 0:00:02]} 41. Nf6+ {[%clk 0:01:12]}  Kg7 {[%clk 0:00:02]} 42. h5 {[%clk 0:01:13]}  Rxb3+ {[%clk 0:00:00]} 43. Kf4 {[%clk 0:01:14]} 1-0


[Site "https://www.chess.com"]

[Event "Titled Tuesday Blitz July 4 Early 2023"]
[White "Rustemov, Alexander"]
[Black "Ocelak, Jakub"]
[WhiteFideId "4119002"]
[BlackFideId "23707933"]
[WhiteElo "2791"]
[BlackElo "2442"]
[Result "1-0"]
[Round "1"]
[TimeControl "180+2"]
[Date "2023.07.04"]
[WhiteClock "0:01:43"]
[BlackClock "0:00:24"]
[Board "75"]

1. d4 {[%clk 0:03:00]}  d5 {[%clk 0:02:57]} 2. c4 {[%clk 0:03:01]}  e6 {[%clk 0:02:57]} 3. Nc3 {[%clk 0:03:01]}  Nf6 {[%clk 0:02:57]} 4. Bg5 {[%clk 0:03:01]}  Bb4 {[%clk 0:02:55]} 5. e3 {[%clk 0:03:00]}  O-O {[%clk 0:02:52]} 6. Nf3 {[%clk 0:03:00]}  c5 {[%clk 0:02:38]} 7. cxd5 {[%clk 0:02:58]}  exd5 {[%clk 0:02:33]} 8. dxc5 {[%clk 0:02:58]}  Nbd7 {[%clk 0:02:27]} 9. Rc1 {[%clk 0:02:52]}  h6 {[%clk 0:02:18]} 10. Bxf6 {[%clk 0:02:52]}  Nxf6 {[%clk 0:02:13]} 11. Be2 {[%clk 0:02:51]}  Ne4 {[%clk 0:02:09]} 12. O-O {[%clk 0:02:51]}  Nxc3 {[%clk 0:02:09]} 13. bxc3 {[%clk 0:02:50]}  Bxc5 {[%clk 0:02:09]} 14. Nd4 {[%clk 0:02:47]}  Qf6 {[%clk 0:02:04]} 15. Bf3 {[%clk 0:02:47]}  Rd8 {[%clk 0:02:03]} 16. Qb3 {[%clk 0:02:45]}  Bd6 {[%clk 0:01:55]} 17. g3 {[%clk 0:02:37]}  Qe5 {[%clk 0:01:42]} 18. Qxd5 {[%clk 0:02:31]}  Qxd5 {[%clk 0:01:41]} 19. Bxd5 {[%clk 0:02:30]}  Ba3 {[%clk 0:01:42]} 20. c4 {[%clk 0:02:22]}  Bxc1 {[%clk 0:01:41]} 21. Rxc1 {[%clk 0:02:23]}  a6 {[%clk 0:01:36]} 22. a4 {[%clk 0:02:20]}  Ra7 {[%clk 0:01:25]} 23. a5 {[%clk 0:02:19]}  Be6 {[%clk 0:01:09]} 24. Nxe6 {[%clk 0:02:10]}  fxe6 {[%clk 0:01:09]} 25. Bxe6+ {[%clk 0:02:11]}  Kf8 {[%clk 0:01:10]} 26. Bd5 {[%clk 0:02:11]}  Ke7 {[%clk 0:01:07]} 27. Rb1 {[%clk 0:02:10]}  Rd7 {[%clk 0:01:06]} 28. e4 {[%clk 0:02:08]}  Rc7 {[%clk 0:01:06]} 29. f4 {[%clk 0:02:04]}  Rc5 {[%clk 0:01:05]} 30. Ra1 {[%clk 0:02:03]}  Kd6 {[%clk 0:01:02]} 31. Kf2 {[%clk 0:02:01]}  Ra8 {[%clk 0:00:57]} 32. Ke3 {[%clk 0:02:00]}  Rb8 {[%clk 0:00:54]} 33. e5+ {[%clk 0:01:56]}  Kd7 {[%clk 0:00:51]} 34. Kd4 {[%clk 0:01:56]}  Rc7 {[%clk 0:00:51]} 35. Rb1 {[%clk 0:01:53]}  Kc8 {[%clk 0:00:42]} 36. f5 {[%clk 0:01:50]}  Re7 {[%clk 0:00:40]} 37. Rb6 {[%clk 0:01:47]}  Kc7 {[%clk 0:00:39]} 38. g4 {[%clk 0:01:46]}  Rd7 {[%clk 0:00:33]} 39. h4 {[%clk 0:01:45]}  Kd8 {[%clk 0:00:28]} 40. g5 {[%clk 0:01:43]}  hxg5 {[%clk 0:00:27]} 41. hxg5 {[%clk 0:01:44]}  Ke7 {[%clk 0:00:28]} 42. f6+ {[%clk 0:01:43]}  gxf6 {[%clk 0:00:28]} 43. exf6+ {[%clk 0:01:42]}  Kf8 {[%clk 0:00:24]} 44. g6 {[%clk 0:01:43]} 1-0


[Site "https://www.chess.com"]

[Event "Titled Tuesday Blitz July 4 Early 2023"]
[White "Taboas Rodriguez, Daniel"]
[Black "Harsh Suresh"]
[WhiteFideId "2208466"]
[BlackFideId "45018464"]
[WhiteElo "2441"]
[BlackElo "2787"]
[Result "0-1"]
[Round "1"]
[TimeControl "180+2"]
[Date "2023.07.04"]
[WhiteClock "0:00:54"]
[BlackClock "0:00:51"]
[Board "76"]

1. d4 {[%clk 0:02:59]}  g6 {[%clk 0:02:58]} 2. Nf3 {[%clk 0:02:53]}  Bg7 {[%clk 0:02:58]} 3. c4 {[%clk 0:02:50]}  d6 {[%clk 0:02:58]} 4. Nc3 {[%clk 0:02:51]}  e5 {[%clk 0:02:57]} 5. dxe5 {[%clk 0:02:52]}  dxe5 {[%clk 0:02:58]} 6. Qxd8+ {[%clk 0:02:52]}  Kxd8 {[%clk 0:02:59]} 7. Bd2 {[%clk 0:02:53]}  c6 {[%clk 0:02:56]} 8. O-O-O {[%clk 0:02:52]}  Kc7 {[%clk 0:02:57]} 9. Ne4 {[%clk 0:02:45]}  Na6 {[%clk 0:02:41]} 10. Nd6 {[%clk 0:02:22]}  Be6 {[%clk 0:02:35]} 11. Ng5 {[%clk 0:02:21]}  Kxd6 {[%clk 0:02:29]} 12. Nxf7+ {[%clk 0:02:16]}  Bxf7 {[%clk 0:02:12]} 13. Bh6+ {[%clk 0:02:16]}  Ke7 {[%clk 0:02:12]} 14. Bxg7 {[%clk 0:02:16]}  Nf6 {[%clk 0:02:13]} 15. Bxh8 {[%clk 0:02:14]}  Rxh8 {[%clk 0:02:14]} 16. f3 {[%clk 0:02:12]}  Bxc4 {[%clk 0:02:12]} 17. e4 {[%clk 0:02:10]}  Bxf1 {[%clk 0:02:09]} 18. Rhxf1 {[%clk 0:02:11]}  Nc5 {[%clk 0:02:07]} 19. g3 {[%clk 0:02:08]}  a5 {[%clk 0:01:59]} 20. Kc2 {[%clk 0:02:06]}  h5 {[%clk 0:01:57]} 21. Kc3 {[%clk 0:02:04]}  h4 {[%clk 0:01:56]} 22. Rh1 {[%clk 0:02:03]}  Ne6 {[%clk 0:01:51]} 23. Rdf1 {[%clk 0:01:58]}  g5 {[%clk 0:01:45]} 24. a3 {[%clk 0:01:54]}  Nd4 {[%clk 0:01:41]} 25. f4 {[%clk 0:01:45]}  gxf4 {[%clk 0:01:38]} 26. gxf4 {[%clk 0:01:44]}  Ne2+ {[%clk 0:01:39]} 27. Kd3 {[%clk 0:01:37]}  Nxf4+ {[%clk 0:01:39]} 28. Ke3 {[%clk 0:01:37]}  h3 {[%clk 0:01:30]} 29. Rhg1 {[%clk 0:01:36]}  Ng2+ {[%clk 0:01:29]} 30. Kf3 {[%clk 0:01:34]}  Rg8 {[%clk 0:01:23]} 31. Rd1 {[%clk 0:01:29]}  Rg4 {[%clk 0:01:22]} 32. Rd3 {[%clk 0:01:21]}  Nh4+ {[%clk 0:01:20]} 33. Kf2 {[%clk 0:01:20]}  Nxe4+ {[%clk 0:01:14]} 34. Kf1 {[%clk 0:01:20]}  Rg2 {[%clk 0:00:51]} 35. Rxh3 {[%clk 0:01:04]}  Rf2+ {[%clk 0:00:51]} 36. Ke1 {[%clk 0:01:05]}  Nf3+ {[%clk 0:00:52]} 37. Rxf3 {[%clk 0:01:04]}  Rxf3 {[%clk 0:00:52]} 38. Rg7+ {[%clk 0:01:04]}  Kd6 {[%clk 0:00:53]} 39. Rxb7 {[%clk 0:00:54]}  Rh3 {[%clk 0:00:51]} 0-1


[Site "https://www.chess.com"]

[Event "Titled Tuesday Blitz July 4 Early 2023"]
[White "Kaasen, Tor Fredrik"]
[Black "Begunov, Konstantin"]
[WhiteFideId "1516647"]
[BlackFideId "4118510"]
[WhiteElo "2782"]
[BlackElo "2440"]
[Result "1-0"]
[Round "1"]
[TimeControl "180+2"]
[Date "2023.07.04"]
[WhiteClock "0:01:21"]
[BlackClock "0:00:00"]
[Board "77"]

1. e4 {[%clk 0:02:59]}  c5 {[%clk 0:02:59]} 2. Nf3 {[%clk 0:02:59]}  d6 {[%clk 0:03:00]} 3. d4 {[%clk 0:02:59]}  cxd4 {[%clk 0:03:01]} 4. Nxd4 {[%clk 0:02:59]}  Nf6 {[%clk 0:03:01]} 5. Nc3 {[%clk 0:02:59]}  a6 {[%clk 0:03:02]} 6. h3 {[%clk 0:02:56]}  e6 {[%clk 0:03:00]} 7. g4 {[%clk 0:02:56]}  b5 {[%clk 0:03:00]} 8. g5 {[%clk 0:02:55]}  b4 {[%clk 0:02:50]} 9. gxf6 {[%clk 0:02:55]}  bxc3 {[%clk 0:02:50]} 10. bxc3 {[%clk 0:02:52]}  Qc7 {[%clk 0:02:26]} 11. fxg7 {[%clk 0:02:47]}  Bxg7 {[%clk 0:02:26]} 12. Qd3 {[%clk 0:02:32]}  Bb7 {[%clk 0:02:20]} 13. Rg1 {[%clk 0:02:30]}  Bf6 {[%clk 0:02:12]} 14. Bh6 {[%clk 0:02:27]}  Nd7 {[%clk 0:02:09]} 15. Qe3 {[%clk 0:01:59]}  Rc8 {[%clk 0:01:31]} 16. Rb1 {[%clk 0:01:58]}  Nc5 {[%clk 0:01:29]} 17. f3 {[%clk 0:01:53]}  Na4 {[%clk 0:01:08]} 18. Bg7 {[%clk 0:01:49]}  Bxg7 {[%clk 0:01:01]} 19. Rxg7 {[%clk 0:01:50]}  Nxc3 {[%clk 0:00:32]} 20. Rb3 {[%clk 0:01:44]}  Qa5 {[%clk 0:00:17]} 21. Rxb7 {[%clk 0:01:22]}  Nxe4+ {[%clk 0:00:10]} 22. Ke2 {[%clk 0:01:21]}  Nc3+ {[%clk 0:00:00]} 23. Kf2 {[%clk 0:01:21]} 1-0


[Site "https://www.chess.com"]

[Event "Titled Tuesday Blitz July 4 Early 2023"]
[White "Leebit02"]
[Black "realmadridfc123"]
[WhiteElo "2440"]
[BlackElo "2780"]
[Result "1-0"]
[Round "1"]
[TimeControl "180+2"]
[Date "2023.07.04"]
[WhiteClock "0:00:28"]
[BlackClock "0:00:00"]
[Board "78"]

1. Nf3 {[%clk 0:02:57]}  d5 {[%clk 0:02:59]} 2. e3 {[%clk 0:02:55]}  Nf6 {[%clk 0:02:59]} 3. b3 {[%clk 0:02:50]}  c5 {[%clk 0:02:59]} 4. Bb2 {[%clk 0:02:49]}  Nc6 {[%clk 0:03:00]} 5. Bb5 {[%clk 0:02:47]}  e6 {[%clk 0:02:49]} 6. O-O {[%clk 0:02:37]}  Be7 {[%clk 0:02:49]} 7. d4 {[%clk 0:02:37]}  O-O {[%clk 0:02:49]} 8. Nbd2 {[%clk 0:02:30]}  cxd4 {[%clk 0:02:43]} 9. exd4 {[%clk 0:02:26]}  a6 {[%clk 0:02:34]} 10. Bd3 {[%clk 0:02:21]}  Nb4 {[%clk 0:02:33]} 11. Be2 {[%clk 0:02:22]}  Qc7 {[%clk 0:02:33]} 12. a3 {[%clk 0:02:17]}  Nc6 {[%clk 0:02:32]} 13. Bd3 {[%clk 0:02:07]}  Bd6 {[%clk 0:02:24]} 14. Re1 {[%clk 0:02:04]}  b5 {[%clk 0:02:09]} 15. Ne5 {[%clk 0:02:04]}  Bb7 {[%clk 0:02:10]} 16. Qf3 {[%clk 0:01:54]}  b4 {[%clk 0:01:52]} 17. a4 {[%clk 0:01:37]}  Rac8 {[%clk 0:01:36]} 18. Qh3 {[%clk 0:01:33]}  h6 {[%clk 0:01:30]} 19. f4 {[%clk 0:01:27]}  Qb6 {[%clk 0:01:29]} 20. Ndf3 {[%clk 0:01:21]}  Ne7 {[%clk 0:01:29]} 21. g4 {[%clk 0:01:07]}  Bxe5 {[%clk 0:00:58]} 22. Nxe5 {[%clk 0:01:04]}  Nc6 {[%clk 0:00:51]} 23. g5 {[%clk 0:00:55]}  hxg5 {[%clk 0:00:45]} 24. Nd7 {[%clk 0:00:51]}  Rfd8 {[%clk 0:00:08]} 25. Nxb6 {[%clk 0:00:49]}  Rc7 {[%clk 0:00:09]} 26. fxg5 {[%clk 0:00:48]}  Ne4 {[%clk 0:00:08]} 27. Rxe4 {[%clk 0:00:45]}  dxe4 {[%clk 0:00:09]} 28. Bxe4 {[%clk 0:00:46]}  Ne7 {[%clk 0:00:07]} 29. d5 {[%clk 0:00:36]}  Ng6 {[%clk 0:00:01]} 30. Bxg6 {[%clk 0:00:33]}  fxg6 {[%clk 0:00:01]} 31. Qxe6+ {[%clk 0:00:33]}  Kh7 {[%clk 0:00:02]} 32. Rf1 {[%clk 0:00:31]}  Rxc2 {[%clk 0:00:00]} 33. Rf3 {[%clk 0:00:28]} 1-0


[Site "https://www.chess.com"]

[Event "Titled Tuesday Blitz July 4 Early 2023"]
[White "Milikow, Yoav"]
[Black "Batsiashvili, Nino"]
[WhiteFideId "2822237"]
[BlackFideId "13602993"]
[WhiteElo "2778"]
[BlackElo "2438"]
[Result "1-0"]
[Round "1"]
[TimeControl "180+2"]
[Date "2023.07.04"]
[WhiteClock "0:00:14"]
[BlackClock "0:00:08"]
[Board "79"]

1. d4 {[%clk 0:02:55]}  d5 {[%clk 0:02:54]} 2. c4 {[%clk 0:02:52]}  e6 {[%clk 0:02:54]} 3. Nc3 {[%clk 0:02:51]}  Bb4 {[%clk 0:02:53]} 4. cxd5 {[%clk 0:02:49]}  exd5 {[%clk 0:02:53]} 5. Bf4 {[%clk 0:02:49]}  c5 {[%clk 0:02:46]} 6. dxc5 {[%clk 0:02:47]}  Nc6 {[%clk 0:02:35]} 7. e3 {[%clk 0:02:43]}  Qa5 {[%clk 0:02:20]} 8. Bd3 {[%clk 0:02:21]}  Bxc3+ {[%clk 0:02:16]} 9. bxc3 {[%clk 0:02:22]}  Qxc3+ {[%clk 0:02:15]} 10. Kf1 {[%clk 0:02:23]}  Qxc5 {[%clk 0:02:15]} 11. Rc1 {[%clk 0:02:20]}  Qa5 {[%clk 0:02:08]} 12. Qb3 {[%clk 0:02:09]}  Nge7 {[%clk 0:02:07]} 13. Nf3 {[%clk 0:02:00]}  O-O {[%clk 0:02:03]} 14. Bd6 {[%clk 0:01:51]}  Rd8 {[%clk 0:01:55]} 15. Bc5 {[%clk 0:01:36]}  Bf5 {[%clk 0:01:51]} 16. Bxf5 {[%clk 0:01:21]}  Nxf5 {[%clk 0:01:51]} 17. g4 {[%clk 0:01:21]}  Nh6 {[%clk 0:01:41]} 18. Qxb7 {[%clk 0:01:14]}  Rac8 {[%clk 0:01:36]} 19. h3 {[%clk 0:00:56]}  Rc7 {[%clk 0:01:14]} 20. Qb2 {[%clk 0:00:41]}  Rb8 {[%clk 0:00:47]} 21. Qa3 {[%clk 0:00:20]}  Qb5+ {[%clk 0:00:41]} 22. Kg2 {[%clk 0:00:20]}  Na5 {[%clk 0:00:39]} 23. Bd6 {[%clk 0:00:19]}  Rxc1 {[%clk 0:00:23]} 24. Rxc1 {[%clk 0:00:19]}  Re8 {[%clk 0:00:20]} 25. Nd4 {[%clk 0:00:18]}  Qb6 {[%clk 0:00:17]} 26. Bc7 {[%clk 0:00:18]}  Nc4 {[%clk 0:00:16]} 27. Rxc4 {[%clk 0:00:17]}  Qg6 {[%clk 0:00:11]} 28. Qa4 {[%clk 0:00:15]}  Qe4+ {[%clk 0:00:10]} 29. f3 {[%clk 0:00:15]}  Qxe3 {[%clk 0:00:11]} 30. Rc2 {[%clk 0:00:15]}  f5 {[%clk 0:00:09]} 31. Re2 {[%clk 0:00:14]}  Qxe2+ {[%clk 0:00:08]} 32. Nxe2 {[%clk 0:00:15]}  Rxe2+ {[%clk 0:00:08]} 33. Kf1 {[%clk 0:00:16]}  Re7 {[%clk 0:00:08]} 34. Bd6 {[%clk 0:00:14]}  Re8 {[%clk 0:00:08]} 35. Qxe8# {[%clk 0:00:14]} 1-0


[Site "https://www.chess.com"]

[Event "Titled Tuesday Blitz July 4 Early 2023"]
[White "Fisabilillah, Ummi"]
[Black "Cabarkapa, Novak"]
[WhiteFideId "7104804"]
[BlackFideId "943746"]
[WhiteElo "2429"]
[BlackElo "2763"]
[Result "0-1"]
[Round "1"]
[TimeControl "180+2"]
[Date "2023.07.04"]
[WhiteClock "0:00:46"]
[BlackClock "0:02:08"]
[Board "84"]

1. d4 {[%clk 0:02:58]}  g6 {[%clk 0:02:57]} 2. Nf3 {[%clk 0:02:57]}  Bg7 {[%clk 0:02:57]} 3. Bf4 {[%clk 0:02:55]}  d6 {[%clk 0:02:56]} 4. Nbd2 {[%clk 0:02:55]}  Nd7 {[%clk 0:02:56]} 5. c3 {[%clk 0:02:56]}  e5 {[%clk 0:02:56]} 6. Bg3 {[%clk 0:02:54]}  Nh6 {[%clk 0:02:56]} 7. e4 {[%clk 0:02:53]}  O-O {[%clk 0:02:55]} 8. Bd3 {[%clk 0:02:51]}  f5 {[%clk 0:02:54]} 9. Bh4 {[%clk 0:02:46]}  Qe8 {[%clk 0:02:51]} 10. O-O {[%clk 0:02:41]}  f4 {[%clk 0:02:46]} 11. Qb3+ {[%clk 0:02:05]}  Kh8 {[%clk 0:02:44]} 12. Ng5 {[%clk 0:02:01]}  exd4 {[%clk 0:02:33]} 13. Ne6 {[%clk 0:01:30]}  Nc5 {[%clk 0:02:30]} 14. Nxc5 {[%clk 0:01:29]}  dxc5 {[%clk 0:02:31]} 15. f3 {[%clk 0:01:20]}  dxc3 {[%clk 0:02:27]} 16. bxc3 {[%clk 0:01:20]}  b6 {[%clk 0:02:26]} 17. Bc4 {[%clk 0:01:15]}  Nf7 {[%clk 0:02:24]} 18. Rfd1 {[%clk 0:01:08]}  Ne5 {[%clk 0:02:22]} 19. Be2 {[%clk 0:01:07]}  Be6 {[%clk 0:02:20]} 20. Qc2 {[%clk 0:01:06]}  h6 {[%clk 0:02:19]} 21. a4 {[%clk 0:01:04]}  g5 {[%clk 0:02:19]} 22. Bf2 {[%clk 0:01:04]}  a5 {[%clk 0:02:19]} 23. Bb5 {[%clk 0:01:01]}  Qf7 {[%clk 0:02:17]} 24. Be2 {[%clk 0:00:59]}  Rad8 {[%clk 0:02:17]} 25. Nf1 {[%clk 0:00:59]}  Bb3 {[%clk 0:02:15]} 26. Qb2 {[%clk 0:00:57]}  Bxd1 {[%clk 0:02:14]} 27. Rxd1 {[%clk 0:00:56]}  Rxd1 {[%clk 0:02:14]} 28. Bxd1 {[%clk 0:00:57]}  Nd3 {[%clk 0:02:14]} 29. Qd2 {[%clk 0:00:55]}  Nxf2 {[%clk 0:02:14]} 30. Kxf2 {[%clk 0:00:56]}  Qe7 {[%clk 0:02:11]} 31. Bb3 {[%clk 0:00:55]}  Rd8 {[%clk 0:02:11]} 32. Qc2 {[%clk 0:00:55]}  Qe5 {[%clk 0:02:10]} 33. Bd5 {[%clk 0:00:50]}  Qxc3 {[%clk 0:02:09]} 34. Qe2 {[%clk 0:00:46]}  Bd4+ {[%clk 0:02:08]} 0-1


[Site "https://www.chess.com"]